bitfinex/quotes_BTCUSD_20250730
["timestamp","ask_amount","ask_price","bid_price","bid_amount"]
[1753905285426,0.34,117230.0,117220.0,0.2678373]
[1753905285671,0.34,117230.0,117220.0,0.4056773]
[1753905285879,0.34,117230.0,117220.0,0.4066773]
[1753905286980,0.34,117230.0,117220.0,0.3737773]
[1753905287405,0.374,117230.0,117220.0,0.25605]
[1753905287621,0.374,117230.0,117220.0,0.11821]
[1753905287836,0.34,117230.0,117220.0,0.13884]
[1753905288048,0.34,117230.0,117220.0,0.001]
[1753905288313,0.34,117230.0,117220.0,0.13884]
[1753905288960,0.73979771,117230.0,117220.0,0.13884]
[1753905289163,0.41397977,117230.0,117220.0,0.13884]
[1753905289379,0.34,117230.0,117220.0,0.13884]
[1753905289778,0.34,117230.0,117220.0,0.001]
[1753905290012,0.34,117230.0,117220.0,0.13884]
[1753905290224,0.34,117230.0,117220.0,0.001]
[1753905290439,5.75243771,117230.0,117220.0,0.001]
[1753905290660,5.97475501,117230.0,117220.0,0.001]
[1753905291105,6.00040201,117230.0,117220.0,0.001]
[1753905292598,5.6006043,117230.0,117220.0,0.001]
[1753905293511,5.4627643,117230.0,117220.0,0.001]
[1753905293721,5.4627643,117230.0,117220.0,0.15236]
[1753905293722,0.365687,117230.0,117220.0,0.15236]
[1753905293930,0.34004,117230.0,117220.0,0.18326]
[1753905294986,4e-05,117230.0,117220.0,0.80537501]
[1753905295206,4e-05,117230.0,117220.0,0.4055773]
[1753905296153,4e-05,117230.0,117220.0,0.4045773]
[1753905296329,4e-05,117230.0,117220.0,0.80437501]
[1753905296535,4e-05,117230.0,117220.0,0.4045773]
[1753905299565,4e-05,117230.0,117220.0,0.2667373]
[1753905299946,4e-05,117230.0,117220.0,0.4045373]
[1753905300300,4e-05,117230.0,117220.0,0.18226]
[1753905300542,5.0,117200.0,117180.0,0.06588]
[1753905300767,5.34,117180.0,117170.0,0.14465]
[1753905300989,0.34,117180.0,117170.0,0.11265]
[1753905301629,0.34,117180.0,117170.0,0.11471]
[1753905302492,0.34,117180.0,117170.0,0.31541]
[1753905302722,0.025656,117190.0,117170.0,0.25251]
[1753905302935,0.4182216,117190.0,117170.0,0.31541]
[1753905303368,0.95581931,117190.0,117170.0,0.17761]
[1753905303604,0.14708881,117180.0,117170.0,0.14078]
[1753905303842,0.81801931,117190.0,117170.0,0.11265]
[1753905304062,0.42483337,117180.0,117150.0,0.0635]
[1753905304279,5.0,117170.0,117160.0,0.25045]
[1753905304490,5.0,117170.0,117160.0,0.31601]
[1753905304919,0.1378,117180.0,117160.0,0.31601]
[1753905304920,5.0,117180.0,117160.0,0.31601]
[1753905305133,5.0,117180.0,117170.0,0.11265]
[1753905305348,0.34,117180.0,117170.0,0.17615]
[1753905305565,0.34,117180.0,117170.0,0.17821]
[1753905305780,0.865656,117190.0,117180.0,0.0635]
[1753905305991,0.365656,117190.0,117180.0,0.17821]
[1753905306432,0.34,117190.0,117180.0,0.17821]
[1753905306652,0.13784,117200.0,117190.0,0.0635]
[1753905306653,0.16333734,117200.0,117190.0,0.0635]
[1753905306866,0.16333734,117200.0,117190.0,0.06556]
[1753905307086,0.02549734,117200.0,117190.0,0.20638]
[1753905307304,0.02549734,117200.0,117190.0,0.31605]
[1753905307550,0.503492,117210.0,117190.0,0.31605]
[1753905307773,0.503492,117210.0,117200.0,0.11265]
[1753905309080,0.503492,117210.0,117200.0,0.11471]
[1753905309489,0.503492,117210.0,117200.0,0.11265]
[1753905310340,0.93521864,117210.0,117190.0,0.31399]
[1753905310555,5.73979771,117200.0,117190.0,0.14405]
[1753905310765,0.39979771,117200.0,117180.0,0.27957]
[1753905310990,0.39979771,117200.0,117180.0,0.25045]
[1753905311205,0.73979771,117200.0,117180.0,0.25045]
[1753905311430,0.73979771,117200.0,117180.0,0.31395]
[1753905311642,0.82427501,117200.0,117180.0,0.28185]
[1753905312276,0.34,117200.0,117180.0,0.31395]
[1753905312510,0.34,117200.0,117190.0,0.10967]
[1753905312731,0.34,117200.0,117180.0,0.31395]
[1753905313820,0.34,117200.0,117180.0,0.28185]
[1753905314301,0.34,117200.0,117180.0,0.31395]
[1753905314505,0.4244773,117200.0,117180.0,0.31395]
[1753905314913,0.4244773,117200.0,117180.0,0.17615]
[1753905315131,0.82427501,117200.0,117180.0,0.11265]
[1753905315374,0.34,117190.0,117180.0,0.10967]
[1753905315580,0.4778,117190.0,117170.0,0.11265]
[1753905315800,5.39979771,117180.0,117160.0,0.14475]
[1753905316010,0.96207501,117190.0,117160.0,0.3984273]
[1753905316234,5.0,117180.0,117160.0,0.3984273]
[1753905316661,5.0,117180.0,117160.0,0.2887573]
[1753905316862,5.0,117180.0,117170.0,0.10967]
[1753905317453,0.48427501,117180.0,117160.0,0.25045]
[1753905317665,0.48427501,117180.0,117160.0,0.24747]
[1753905317832,0.0844773,117180.0,117160.0,0.28225]
[1753905318042,0.4244773,117180.0,117160.0,0.31375]
[1753905318336,0.34,117180.0,117160.0,0.31375]
[1753905318554,0.34,117180.0,117170.0,0.11265]
[1753905318775,0.34,117180.0,117170.0,0.17701]
[1753905318969,5.84,117180.0,117170.0,0.17701]
[1753905319179,0.34,117180.0,117170.0,0.17701]
[1753905319402,0.39879333,117180.0,117170.0,0.17701]
[1753905319927,0.34,117180.0,117170.0,0.17701]
[1753905320139,0.73979771,117180.0,117150.0,0.17495]
[1753905320389,5.0,117170.0,117160.0,0.1378]
[1753905320622,5.39979771,117170.0,117150.0,0.17197]
[1753905320897,5.39979771,117160.0,117150.0,0.10967]
[1753905321120,0.62207501,117170.0,117140.0,0.31275]
[1753905321369,5.0,117160.0,117150.0,0.10967]
[1753905321603,5.0,117160.0,117150.0,0.17701]
[1753905321604,5.03438866,117160.0,117150.0,0.17701]
[1753905321828,0.03438866,117160.0,117150.0,0.17701]
[1753905322040,5.5,117160.0,117150.0,0.17701]
[1753905322247,5.0,117160.0,117140.0,0.2001]
[1753905322465,0.0844773,117170.0,117150.0,0.17701]
[1753905322675,0.4778,117170.0,117160.0,0.11365]
[1753905322879,5.4778,117170.0,117160.0,0.11067]
[1753905323098,5.4778,117170.0,117160.0,0.001]
[1753905323515,5.4778,117170.0,117150.0,0.17495]
[1753905323516,5.0,117160.0,117150.0,0.17495]
[1753905323983,5.0,117160.0,117140.0,0.30977]
[1753905324220,5.0,117160.0,117140.0,0.31275]
[1753905324422,0.03454147,117160.0,117140.0,0.31275]
[1753905324749,5.0,117160.0,117140.0,0.31275]
[1753905325592,5.0,117160.0,117140.0,0.17495]
[1753905325800,5.0,117140.0,117130.0,0.1378]
[1753905326047,5.0,117140.0,117120.0,0.2001]
[1753905326328,5.0,117140.0,117130.0,0.17946]
[1753905326932,5.0,117140.0,117120.0,0.31519]
[1753905327170,5.0,117140.0,117120.0,0.17739]
[1753905327392,5.0,117140.0,117120.0,0.31519]
[1753905327605,5.0,117140.0,117130.0,0.11198]
[1753905328006,5.82427501,117140.0,117130.0,0.001]
[1753905328475,5.0,117130.0,117120.0,0.31623853]
[1753905328684,5.0,117130.0,117120.0,0.31830853]
[1753905329415,0.02530953,117130.0,117120.0,0.31730853]
[1753905329821,5.0,117130.0,117120.0,0.31730853]
[1753905330231,5.0,117130.0,117120.0,0.14693853]
[1753905330448,5.1378,117130.0,117120.0,0.17743853]
[1753905330622,0.1378,117130.0,117120.0,0.17743853]
[1753905331522,0.1378,117130.0,117120.0,0.06234853]
[1753905331946,0.1378,117130.0,117120.0,0.17843853]
[1753905332985,0.1378,117130.0,117120.0,0.18050853]
[1753905334268,0.16364642,117130.0,117120.0,0.18050853]
[1753905334515,0.02584642,117130.0,117120.0,0.18050853]
[1753905334717,0.50270138,117140.0,117130.0,0.0637]
[1753905334928,0.50270138,117140.0,117130.0,0.18086]
[1753905335997,0.50370138,117140.0,117130.0,0.18086]
[1753905338897,0.50628138,117140.0,117130.0,0.18086]
[1753905339363,0.53227967,117140.0,117130.0,0.18086]
[1753905340441,0.39447967,117140.0,117130.0,0.18086]
[1753905340673,0.39547967,117140.0,117130.0,0.18086]
[1753905341555,0.02948138,117140.0,117130.0,0.58065771]
[1753905341997,0.02948138,117140.0,117130.0,0.18086]
[1753905342421,0.02848138,117140.0,117130.0,0.18086]
[1753905342860,0.02748138,117140.0,117130.0,0.18086]
[1753905343074,0.02748138,117140.0,117130.0,0.31862]
[1753905343285,0.02748138,117140.0,117130.0,0.32062]
[1753905344759,0.02748138,117140.0,117130.0,0.32162]
[1753905345805,0.02748138,117140.0,117130.0,0.72141771]
[1753905346014,0.02748138,117140.0,117130.0,0.32162]
[1753905348051,0.02748138,117140.0,117130.0,0.18386]
[1753905348252,0.02748138,117140.0,117130.0,0.32158]
[1753905348484,0.02748138,117140.0,117130.0,0.18386]
[1753905348671,0.02748138,117140.0,117130.0,0.32158]
[1753905349083,0.02748138,117140.0,117130.0,0.72137771]
[1753905349515,0.02748138,117140.0,117130.0,0.32158]
[1753905349730,0.02748138,117140.0,117130.0,0.72137771]
[1753905350679,0.03005138,117140.0,117130.0,0.72137771]
[1753905351196,0.03005138,117140.0,117130.0,0.80585501]
[1753905352284,0.03005138,117140.0,117130.0,0.97660545]
[1753905352922,0.03005138,117140.0,117130.0,0.99368041]
[1753905353128,0.03005138,117140.0,117130.0,0.97660545]
[1753905353365,0.03005138,117140.0,117130.0,0.80585501]
[1753905353722,0.03005138,117140.0,117130.0,0.66813501]
[1753905354126,0.03005138,117140.0,117130.0,0.80581501]
[1753905354303,0.03005138,117140.0,117130.0,0.97656545]
[1753905354506,0.03005138,117140.0,117130.0,0.98510297]
[1753905354746,0.03005138,117140.0,117130.0,0.99364041]
[1753905355171,0.03005138,117140.0,117130.0,1.02816367]
[1753905355374,0.03005138,117140.0,117130.0,1.02816381]
[1753905355606,0.5,117170.0,117130.0,1.02816381]
[1753905355799,0.34,117170.0,117160.0,0.0602]
[1753905355954,0.34,117170.0,117160.0,0.19788]
[1753905356156,0.02595726,117190.0,117160.0,0.30678]
[1753905356391,4.863282,117180.0,117170.0,0.1337]
[1753905356592,0.37523212,117180.0,117170.0,0.1337]
[1753905356758,0.37523212,117180.0,117170.0,0.1638]
[1753905357001,0.37523212,117180.0,117170.0,0.16384853]
[1753905357372,0.37523212,117180.0,117170.0,0.06024853]
[1753905357578,0.37623212,117180.0,117170.0,0.06024853]
[1753905358354,0.37723212,117180.0,117170.0,0.06024853]
[1753905358998,0.37879212,117180.0,117170.0,0.06024853]
[1753905359207,0.37779212,117180.0,117170.0,0.06024853]
[1753905360054,0.37779212,117180.0,117170.0,0.03014853]
[1753905360266,0.43778706,117180.0,117170.0,0.03014853]
[1753905360451,0.37779212,117180.0,117170.0,0.13374853]
[1753905360698,0.37879212,117180.0,117170.0,0.13374853]
[1753905360893,0.37879212,117180.0,117170.0,0.30361853]
[1753905361146,0.37879212,117180.0,117170.0,0.70658624]
[1753905361147,0.03879212,117180.0,117170.0,0.70658624]
[1753905361362,0.03879212,117180.0,117170.0,0.79106354]
[1753905362045,0.03779212,117180.0,117170.0,0.79106354]
[1753905362257,0.03779212,117180.0,117170.0,0.39126583]
[1753905362464,0.03779212,117180.0,117170.0,0.65342354]
[1753905362677,0.03779212,117180.0,117170.0,0.39126583]
[1753905363182,0.03779212,117180.0,117170.0,0.97882467]
[1753905363452,0.03779212,117180.0,117170.0,0.79106354]
[1753905364138,0.03779212,117180.0,117170.0,0.79306354]
[1753905364379,0.03779212,117180.0,117170.0,0.79302354]
[1753905364876,0.03779212,117180.0,117170.0,0.65542354]
[1753905365139,0.03779212,117180.0,117170.0,0.39322583]
[1753905365681,0.03779212,117180.0,117170.0,0.39522583]
[1753905366148,0.00256,117180.0,117170.0,1.0087675]
[1753905366573,0.00256,117180.0,117170.0,0.82100716]
[1753905366784,0.00256,117180.0,117170.0,1.00023384]
[1753905366995,0.00256,117180.0,117170.0,0.81247256]
[1753905368072,0.00256,117180.0,117170.0,0.39518583]
[1753905368544,0.00256,117180.0,117170.0,0.25762583]
[1753905368786,0.00256,117180.0,117170.0,0.39518583]
[1753905370644,0.00256,117180.0,117170.0,0.20176853]
[1753905371102,0.00256,117180.0,117170.0,0.30853853]
[1753905372705,0.00256,117180.0,117170.0,0.13774853]
[1753905374630,0.00256,117180.0,117170.0,0.14156853]
[1753905375186,0.00256,117180.0,117170.0,0.31426853]
[1753905376740,0.00256,117180.0,117170.0,0.03564853]
[1753905376949,0.00256,117180.0,117170.0,0.17316853]
[1753905377156,0.00256,117180.0,117170.0,0.27676853]
[1753905377359,0.00256,117180.0,117170.0,0.27993853]
[1753905377560,0.00256,117180.0,117170.0,0.31133853]
[1753905377762,0.00256,117180.0,117170.0,0.31342853]
[1753905380545,0.00256,117180.0,117170.0,0.24829853]
[1753905380749,0.00256,117180.0,117170.0,0.27979853]
[1753905380954,0.00256,117180.0,117170.0,0.31332853]
[1753905382617,0.00256,117180.0,117170.0,0.17584853]
[1753905382849,0.75116897,117180.0,117170.0,0.00934853]
[1753905383258,0.34256,117180.0,117170.0,0.11294853]
[1753905383681,0.34256,117180.0,117170.0,0.11094853]
[1753905383960,0.75116897,117180.0,117170.0,0.10894853]
[1753905384171,0.97073775,117180.0,117170.0,0.10894853]
[1753905384376,0.97073775,117180.0,117170.0,0.00534853]
[1753905384822,0.56212878,117180.0,117170.0,4.853e-05]
[1753905385068,0.34356,117180.0,117170.0,4.853e-05]
[1753905385312,0.34356,117180.0,117170.0,0.10364853]
[1753905385543,0.481,117180.0,117170.0,0.10364853]
[1753905385780,5.344282,117180.0,117170.0,4.853e-05]
[1753905385995,5.74340236,117180.0,117170.0,4.853e-05]
[1753905386282,5.75600236,117180.0,117170.0,4.853e-05]
[1753905386480,5.356882,117180.0,117170.0,4.853e-05]
[1753905386672,5.74340236,117180.0,117170.0,4.853e-05]
[1753905387092,5.344282,117180.0,117170.0,0.10288853]
[1753905388148,5.344282,117180.0,117170.0,0.13754853]
[1753905388368,5.4287593,117180.0,117170.0,0.13754853]
[1753905388582,5.344282,117180.0,117170.0,0.13754853]
[1753905390107,0.481,117180.0,117170.0,0.17106853]
[1753905390791,0.34356,117180.0,117170.0,0.17106853]
[1753905391002,0.48096,117180.0,117170.0,0.17106853]
[1753905391659,0.34356,117180.0,117170.0,0.30846853]
[1753905391876,0.00356,117180.0,117170.0,0.70758889]
[1753905392093,0.50356,117180.0,117170.0,0.70758889]
[1753905392302,0.50356,117180.0,117170.0,0.30846853]
[1753905392486,0.50256,117180.0,117170.0,0.30846853]
[1753905392727,0.50256,117180.0,117170.0,0.39294583]
[1753905392958,0.50256,117180.0,117170.0,0.80951521]
[1753905393378,0.50256,117180.0,117170.0,0.98874189]
[1753905393592,0.50256,117180.0,117170.0,0.9972762]
[1753905393810,0.50256,117180.0,117170.0,1.00581029]
[1753905394837,0.50256,117180.0,117170.0,0.60668993]
[1753905395073,0.50256,117180.0,117170.0,1.00581029]
[1753905395709,0.50256,117180.0,117170.0,1.00881029]
[1753905396686,0.50256,117180.0,117170.0,1.01281029]
[1753905398269,0.50256,117180.0,117170.0,0.85834189]
[1753905398474,0.50256,117180.0,117170.0,1.0041962]
[1753905398717,0.50256,117180.0,117170.0,1.01273044]
[1753905398903,0.50256,117180.0,117170.0,1.0041962]
[1753905399077,0.50256,117180.0,117170.0,0.99566189]
[1753905399285,0.50256,117180.0,117170.0,1.0041962]
[1753905399472,0.50256,117180.0,117170.0,1.01273044]
[1753905399719,0.50256,117180.0,117170.0,1.02126453]
[1753905399922,0.50256,117180.0,117170.0,1.0041962]
[1753905400128,0.50256,117180.0,117170.0,1.02126453]
[1753905400573,0.50256,117180.0,117170.0,1.27693044]
[1753905401191,0.50256,117180.0,117170.0,1.26839635]
[1753905401398,0.50256,117180.0,117170.0,1.2854649]
[1753905402043,0.50256,117180.0,117170.0,1.27693066]
[1753905402252,0.50256,117180.0,117170.0,1.28546504]
[1753905402460,0.50256,117180.0,117170.0,1.28546497]
[1753905402665,0.50256,117180.0,117170.0,1.29399906]
[1753905403088,0.5026,117180.0,117170.0,1.29399906]
[1753905403294,0.5026,117180.0,117170.0,1.29395906]
[1753905403705,0.5026,117180.0,117170.0,1.63395906]
[1753905404889,0.5026,117180.0,117170.0,1.64318421]
[1753905406347,0.5026,117180.0,117170.0,1.37898421]
[1753905406752,0.5026,117180.0,117170.0,1.33627251]
[1753905406957,0.5026,117180.0,117170.0,0.80813134]
[1753905407162,0.5026,117180.0,117170.0,1.00480697]
[1753905407804,0.5026,117180.0,117170.0,1.01334135]
[1753905408039,0.5026,117180.0,117170.0,1.03040975]
[1753905409250,0.5026,117180.0,117170.0,0.21181485]
[1753905409455,0.5026,117180.0,117170.0,0.15532583]
[1753905409661,0.5026,117180.0,117170.0,0.70087134]
[1753905409871,0.5026,117180.0,117170.0,0.71832036]
[1753905410074,0.5026,117180.0,117170.0,0.30997485]
[1753905410474,0.5026,117180.0,117170.0,0.82432036]
[1753905411171,0.5026,117180.0,117170.0,0.41281485]
[1753905411386,0.5026,117180.0,117170.0,0.26132583]
[1753905412035,0.5026,117180.0,117170.0,0.03964853]
[1753905412240,0.5026,117180.0,117170.0,0.17684853]
[1753905412880,0.5026,117180.0,117170.0,0.03964853]
[1753905413098,0.5026,117180.0,117170.0,0.14424853]
[1753905414181,0.91094551,117180.0,117170.0,0.14424853]
[1753905415055,0.5026,117180.0,117170.0,0.14124853]
[1753905415264,0.5026,117180.0,117170.0,0.13824853]
[1753905415477,0.91094551,117180.0,117170.0,0.13924853]
[1753905415705,0.5026,117180.0,117170.0,0.13924853]
[1753905416586,0.5026,117180.0,117170.0,0.13920853]
[1753905416815,0.5026,117180.0,117170.0,0.72265404]
[1753905417033,0.5026,117180.0,117170.0,0.80713134]
[1753905418334,0.5026,117180.0,117170.0,1.02087544]
[1753905418975,0.5026,117180.0,117170.0,0.60399584]
[1753905419190,0.5026,117180.0,117170.0,1.01134226]
[1753905419404,0.5026,117180.0,117170.0,1.01987643]
[1753905419831,0.5026,117180.0,117170.0,1.02841052]
[1753905420258,0.5026,117180.0,117170.0,1.03952742]
[1753905422636,0.5026,117180.0,117170.0,0.90236742]
[1753905422843,0.5026,117180.0,117170.0,1.37952742]
[1753905423956,0.5026,117180.0,117170.0,1.37752742]
[1753905424452,0.5026,117180.0,117170.0,1.38052742]
[1753905424652,0.5026,117180.0,117170.0,1.38552742]
[1753905425529,0.5026,117180.0,117170.0,0.98671539]
[1753905425711,0.5026,117180.0,117170.0,1.38552742]
[1753905428828,0.30914529,117180.0,117170.0,1.38552742]
[1753905432468,0.30914529,117180.0,117170.0,1.35980491]
[1753905432687,0.30914529,117180.0,117170.0,1.36833915]
[1753905433127,0.30914529,117180.0,117170.0,1.35980491]
[1753905433346,0.30914529,117180.0,117170.0,1.18057838]
[1753905433590,0.30914529,117180.0,117170.0,1.18911291]
[1753905433812,0.30914529,117180.0,117170.0,1.36833952]
[1753905434061,0.30914529,117180.0,117170.0,1.21423053]
[1753905434276,0.30914529,117180.0,117170.0,1.35980506]
[1753905434697,0.30914529,117180.0,117170.0,1.36833937]
[1753905435145,0.30914529,117180.0,117170.0,1.3854077]
[1753905435992,0.30914529,117180.0,117170.0,1.38830839]
[1753905439477,0.30914529,117180.0,117170.0,1.41330839]
[1753905439966,0.30914529,117180.0,117170.0,1.43830839]
[1753905440421,0.24014102,117180.0,117170.0,1.43830839]
[1753905440644,0.24014102,117180.0,117170.0,1.83212042]
[1753905440858,0.24014102,117180.0,117170.0,1.85663184]
[1753905441065,0.24014102,117180.0,117170.0,1.89143371]
[1753905441282,0.24014102,117180.0,117170.0,1.88543371]
[1753905441537,0.24014102,117180.0,117170.0,1.88943371]
[1753905441756,0.20453886,117180.0,117170.0,1.88943371]
[1753905441978,4.863282,117270.0,117230.0,0.04834902]
[1753905442240,0.13696,117270.0,117240.0,0.62950504]
[1753905442460,0.34,117270.0,117240.0,0.62950504]
[1753905442665,0.03557255,117270.0,117250.0,0.40806774]
[1753905442878,0.03557255,117270.0,117260.0,0.13696]
[1753905443091,0.025639,117290.0,117260.0,0.13696]
[1753905443300,0.00048577,117270.0,117260.0,0.13696]
[1753905444374,0.44352321,117270.0,117250.0,0.0844773]
[1753905444586,0.44352321,117270.0,117260.0,0.13692]
[1753905444789,0.00048577,117270.0,117260.0,0.13692]
[1753905445009,0.53268577,117270.0,117260.0,0.13692]
[1753905445427,0.03268577,117270.0,117260.0,0.13692]
[1753905445642,0.53268577,117270.0,117260.0,0.00350069]
[1753905445863,0.44809433,117270.0,117260.0,0.14042069]
[1753905446081,0.44809433,117270.0,117260.0,0.00350069]
[1753905446790,0.04964635,117270.0,117260.0,0.00350069]
[1753905447521,5.73585363,117270.0,117260.0,0.00350069]
[1753905447759,5.7699901,117270.0,117260.0,0.00350069]
[1753905447974,5.74382868,117270.0,117260.0,0.00350069]
[1753905448199,5.80403193,117270.0,117260.0,0.00350069]
[1753905449147,5.8296126,117270.0,117260.0,0.00350069]
[1753905449386,5.82108534,117270.0,117260.0,0.00350069]
[1753905449599,5.82108563,117270.0,117260.0,0.00350069]
[1753905449815,0.95780356,117270.0,117260.0,0.00350069]
[1753905450000,0.96633059,117270.0,117260.0,0.00350069]
[1753905450225,5.8381397,117270.0,117260.0,0.00350069]
[1753905450472,5.8381397,117270.0,117210.0,0.10392]
[1753905450473,0.0315,117230.0,117210.0,0.2408]
[1753905450695,0.0315,117230.0,117210.0,0.3561773]
[1753905450866,0.0315,117220.0,117210.0,0.1883973]
[1753905451354,0.0315,117220.0,117210.0,0.3252373]
[1753905451749,0.03198547,117220.0,117210.0,0.3252373]
[1753905452142,0.00048547,117220.0,117210.0,0.3612373]
[1753905452389,0.00048547,117220.0,117210.0,0.78968528]
[1753905452585,0.00048547,117220.0,117210.0,0.3912373]
[1753905452794,0.00048547,117220.0,117210.0,0.3612373]
[1753905453021,0.00048547,117220.0,117210.0,0.3571373]
[1753905453190,0.00048547,117220.0,117210.0,0.3622373]
[1753905453995,0.00048547,117220.0,117210.0,0.79068528]
[1753905454209,0.00048547,117220.0,117210.0,0.97814346]
[1753905454428,0.00048547,117220.0,117210.0,0.97838227]
[1753905454639,0.00048547,117220.0,117210.0,0.9698508]
[1753905454842,0.00048547,117220.0,117210.0,0.96131918]
[1753905455052,0.00048547,117220.0,117210.0,0.79068528]
[1753905455676,0.00048547,117220.0,117210.0,0.78968528]
[1753905455881,0.00048547,117220.0,117210.0,0.79068528]
[1753905456082,0.00048547,117220.0,117210.0,0.3922373]
[1753905456292,0.00048547,117220.0,117210.0,0.78968528]
[1753905456505,0.00048547,117220.0,117210.0,0.96031918]
[1753905456713,0.00048547,117220.0,117210.0,0.7992169]
[1753905456920,0.00048547,117220.0,117210.0,0.97838234]
[1753905457125,0.00048547,117220.0,117210.0,0.99583136]
[1753905457337,0.00048547,117220.0,117210.0,0.8101343]
[1753905457763,0.00048547,117220.0,117210.0,0.59085191]
[1753905457981,0.00048547,117220.0,117210.0,0.99783151]
[1753905458190,0.00048547,117220.0,117210.0,0.38124632]
[1753905459870,0.00048547,117220.0,117210.0,0.3586973]
[1753905460095,0.03338547,117220.0,117210.0,0.1398]
[1753905460798,0.00048547,117220.0,117210.0,0.24372]
[1753905461007,0.00048547,117220.0,117210.0,0.24668]
[1753905462332,0.00048547,117220.0,117210.0,0.27932]
[1753905463467,0.00048547,117220.0,117210.0,0.24668]
[1753905463468,0.03338547,117220.0,117210.0,0.24668]
[1753905464141,0.00048547,117220.0,117210.0,0.27718]
[1753905465250,0.00048547,117220.0,117210.0,0.27932]
[1753905468474,0.00048547,117220.0,117210.0,0.28162069]
[1753905469367,0.03108547,117220.0,117210.0,0.10922069]
[1753905469602,0.03108547,117220.0,117210.0,0.14202069]
[1753905470662,0.03108547,117220.0,117210.0,0.24594069]
[1753905470867,0.03108547,117220.0,117210.0,0.24890069]
[1753905471098,0.03108547,117220.0,117210.0,0.24790069]
[1753905471392,0.03108547,117220.0,117210.0,0.14102069]
[1753905471821,0.03108547,117220.0,117210.0,0.13902069]
[1753905472248,0.03108547,117220.0,117210.0,0.24294069]
[1753905472475,0.06819402,117220.0,117210.0,0.00230069]
[1753905472687,5.670624,117220.0,117210.0,0.00230069]
[1753905472898,5.23506747,117220.0,117210.0,0.00230069]
[1753905473134,5.37174747,117220.0,117210.0,0.00230069]
[1753905476069,5.23506747,117220.0,117210.0,0.00230069]
[1753905478937,5.64345151,117220.0,117210.0,0.00230069]
[1753905479413,5.72792881,117220.0,117210.0,0.00230069]
[1753905480332,5.31954477,117220.0,117210.0,0.00230069]
[1753905480530,5.23506747,117220.0,117210.0,0.00230069]
[1753905480977,5.64345151,117220.0,117210.0,0.00230069]
[1753905481403,5.72792881,117220.0,117210.0,0.00230069]
[1753905482555,0.86464681,117220.0,117210.0,0.00230069]
[1753905482789,5.72792881,117220.0,117210.0,0.00230069]
[1753905483013,5.81240611,117220.0,117210.0,0.00230069]
[1753905483239,5.83805911,117220.0,117210.0,0.00230069]
[1753905484659,5.88944181,117220.0,117210.0,0.00230069]
[1753905484874,5.86378881,117220.0,117210.0,0.00230069]
[1753905485125,5.45540477,117220.0,117210.0,0.00230069]
[1753905485368,5.86378881,117220.0,117210.0,0.00230069]
[1753905487212,5.86448881,117220.0,117210.0,0.00230069]
[1753905487517,5.94826611,117220.0,117210.0,0.00230069]
[1753905487952,5.23436747,117220.0,117210.0,0.00230069]
[1753905488198,5.37092747,117220.0,117210.0,0.00230069]
[1753905488453,5.20376747,117220.0,117210.0,0.03530069]
[1753905488672,0.34148547,117220.0,117210.0,0.03530069]
[1753905489549,0.34248547,117220.0,117210.0,0.03530069]
[1753905489764,0.34148547,117220.0,117210.0,0.03530069]
[1753905489991,0.74028511,117220.0,117210.0,0.03530069]
[1753905490227,0.74128511,117220.0,117210.0,0.03530069]
[1753905490444,0.74028511,117220.0,117210.0,0.03530069]
[1753905490671,0.34148547,117220.0,117210.0,0.03530069]
[1753905490904,0.34248547,117220.0,117210.0,0.03530069]
[1753905494276,0.74128511,117220.0,117210.0,0.03530069]
[1753905494493,5.68904441,117220.0,117210.0,0.03530069]
[1753905494941,5.29024477,117220.0,117210.0,0.03530069]
[1753905495188,5.72204441,117220.0,117210.0,0.03530069]
[1753905495613,5.20576747,117220.0,117210.0,0.03530069]
[1753905496474,5.60456711,117220.0,117210.0,0.03530069]
[1753905496705,5.20576747,117220.0,117210.0,0.03530069]
[1753905498437,5.60456711,117220.0,117210.0,0.03530069]
[1753905499288,5.74100711,117220.0,117210.0,0.03530069]
[1753905499527,5.20576747,117220.0,117210.0,0.03530069]
[1753905499749,0.34248547,117220.0,117210.0,0.06580069]
[1753905500583,0.34248547,117220.0,117210.0,0.17709069]
[1753905501025,0.00248547,117220.0,117210.0,0.66036763]
[1753905501719,0.00248547,117220.0,117210.0,0.79676763]
[1753905501935,0.00248547,117220.0,117210.0,0.39796799]
[1753905504239,0.00248547,117220.0,117210.0,0.79676763]
[1753905504891,0.00248547,117220.0,117210.0,0.39796799]
[1753905505696,0.00248547,117220.0,117210.0,0.25958799]
[1753905505922,0.00248547,117220.0,117210.0,0.39590799]
[1753905507164,0.00248547,117220.0,117210.0,0.25958799]
[1753905507384,0.00248547,117220.0,117210.0,0.39590799]
[1753905507605,0.00248547,117220.0,117210.0,0.14291069]
[1753905507822,0.00248547,117220.0,117210.0,0.30943069]
[1753905508047,0.00248547,117220.0,117210.0,0.27923069]
[1753905508298,0.00248547,117220.0,117210.0,0.14291069]
[1753905508517,0.00248547,117220.0,117210.0,0.27923069]
[1753905508939,0.00248547,117220.0,117210.0,0.14291069]
[1753905510061,0.77328511,117220.0,117210.0,0.14291069]
[1753905510274,0.85061362,117220.0,117210.0,0.14291069]
[1753905510706,0.45181398,117220.0,117210.0,0.14291069]
[1753905510924,0.58809398,117220.0,117210.0,0.14291069]
[1753905511428,0.51076547,117220.0,117210.0,0.14291069]
[1753905512595,0.90956511,117220.0,117210.0,0.11161069]
[1753905513267,0.56707964,117220.0,117210.0,0.11161069]
[1753905513491,5.43036164,117220.0,117210.0,0.11161069]
[1753905514881,5.44003061,117220.0,117210.0,0.11161069]
[1753905515319,5.94968521,117220.0,117210.0,0.11161069]
[1753905515814,5.5405166,117220.0,117210.0,0.11161069]
[1753905516271,5.94898521,117220.0,117210.0,0.11161069]
[1753905517369,5.4560393,117220.0,117210.0,0.11161069]
[1753905517582,5.86442791,117220.0,117210.0,0.14321069]
[1753905518490,5.86442791,117220.0,117210.0,0.11161069]
[1753905518932,0.1362,117220.0,117210.0,0.14321069]
[1753905519150,0.1362,117220.0,117210.0,0.17581069]
[1753905519364,0.4762,117220.0,117210.0,0.14321069]
[1753905519610,0.34,117220.0,117210.0,0.14321069]
[1753905520002,0.4762,117220.0,117210.0,0.14321069]
[1753905520208,0.34,117220.0,117210.0,0.14321069]
[1753905520418,0.34,117220.0,117210.0,0.5842793]
[1753905520638,0.47616,117220.0,117210.0,0.5842793]
[1753905520890,4.863282,117220.0,117210.0,0.5842793]